[Event "Titled Tuesday Blitz April 4 Early 2023"]
[White "Okike, David"]
[Black "EdmundPlayer"]
[WhiteFideId "8500134"]
[WhiteElo "2232"]
[BlackElo "2235"]
[Result "1-0"]
[Round "08"]
[TimeControl "180+2"]
[Date "2023.04.04"]
[WhiteClock "0:01:01"]
[BlackClock "0:00:03"]

1. e4 {[%clk 0:02:56]}  c6 {[%clk 0:02:55]} 2. d4 {[%clk 0:02:56]}  d5 {[%clk 0:02:55]} 3. e5 {[%clk 0:02:56]}  c5 {[%clk 0:02:50]} 4. dxc5 {[%clk 0:02:55]}  e6 {[%clk 0:02:47]} 5. a3 {[%clk 0:02:55]}  Bxc5 {[%clk 0:02:43]} 6. b4 {[%clk 0:02:55]}  Bf8 {[%clk 0:02:37]} 7. Nf3 {[%clk 0:02:51]}  Ne7 {[%clk 0:02:31]} 8. Bb2 {[%clk 0:02:50]}  Nbc6 {[%clk 0:02:26]} 9. Nbd2 {[%clk 0:02:49]}  Nf5 {[%clk 0:02:19]} 10. Bd3 {[%clk 0:02:45]}  Nh4 {[%clk 0:02:06]} 11. O-O {[%clk 0:02:43]}  Be7 {[%clk 0:02:02]} 12. c4 {[%clk 0:02:40]}  Nxf3+ {[%clk 0:01:42]} 13. Nxf3 {[%clk 0:02:40]}  dxc4 {[%clk 0:01:34]} 14. Bxc4 {[%clk 0:02:40]}  Qxd1 {[%clk 0:01:31]} 15. Raxd1 {[%clk 0:02:40]}  Bd7 {[%clk 0:01:24]} 16. Rd2 {[%clk 0:02:29]}  O-O-O {[%clk 0:01:20]} 17. Rc1 {[%clk 0:02:26]}  Kb8 {[%clk 0:01:18]} 18. Rcd1 {[%clk 0:02:25]}  Bc8 {[%clk 0:01:15]} 19. Bc3 {[%clk 0:02:21]}  a6 {[%clk 0:01:01]} 20. h4 {[%clk 0:02:16]}  b5 {[%clk 0:00:53]} 21. Bd3 {[%clk 0:02:07]}  h6 {[%clk 0:00:49]} 22. Be4 {[%clk 0:02:03]}  Bb7 {[%clk 0:00:48]} 23. Rd7 {[%clk 0:02:01]}  Rhe8 {[%clk 0:00:35]} 24. R1d2 {[%clk 0:01:55]}  Kc8 {[%clk 0:00:31]} 25. Rxb7 {[%clk 0:01:18]}  Kxb7 {[%clk 0:00:26]} 26. Nd4 {[%clk 0:01:15]}  Rd5 {[%clk 0:00:21]} 27. Bxd5 {[%clk 0:01:12]}  exd5 {[%clk 0:00:21]} 28. Nf5 {[%clk 0:01:13]}  d4 {[%clk 0:00:07]} 29. Nxd4 {[%clk 0:01:10]}  Nxe5 {[%clk 0:00:04]} 30. Nf5 {[%clk 0:01:08]}  Nc4 {[%clk 0:00:03]} 31. Rd7+ {[%clk 0:01:07]}  Kc6 {[%clk 0:00:03]} 32. Rxe7 {[%clk 0:01:07]}  Rxe7 {[%clk 0:00:04]} 33. Nxe7+ {[%clk 0:01:07]}  Kd7 {[%clk 0:00:03]} 34. Nd5 {[%clk 0:01:06]}  Nxa3 {[%clk 0:00:03]} 35. Bxg7 {[%clk 0:01:05]}  Ke6 {[%clk 0:00:03]} 36. Nc7+ {[%clk 0:01:04]}  Kf5 {[%clk 0:00:02]} 37. Nxa6 {[%clk 0:01:02]}  Ke4 {[%clk 0:00:02]} 38. Bxh6 {[%clk 0:01:02]}  Nc2 {[%clk 0:00:03]} 39. Bf8 {[%clk 0:01:01]} 1-0


[Site "https://www.chess.com"]

[Event "Titled Tuesday Blitz April 4 Early 2023"]
[White "Levine, David"]
[Black "Jovic, Stanoje"]
[WhiteFideId "2011611"]
[BlackFideId "905020"]
[WhiteElo "2100"]
[BlackElo "2236"]
[Result "0-1"]
[Round "08"]
[TimeControl "180+2"]
[Date "2023.04.04"]
[WhiteClock "0:02:02"]
[BlackClock "0:02:07"]

1. d4 {[%clk 0:03:00]}  Nf6 {[%clk 0:02:59]} 2. c4 {[%clk 0:02:58]}  e6 {[%clk 0:02:59]} 3. g3 {[%clk 0:02:57]}  d5 {[%clk 0:02:58]} 4. Bg2 {[%clk 0:02:56]}  c6 {[%clk 0:02:53]} 5. Nf3 {[%clk 0:02:54]}  Be7 {[%clk 0:02:52]} 6. O-O {[%clk 0:02:54]}  O-O {[%clk 0:02:52]} 7. Qc2 {[%clk 0:02:50]}  b5 {[%clk 0:02:52]} 8. b3 {[%clk 0:02:45]}  a5 {[%clk 0:02:52]} 9. Bb2 {[%clk 0:02:43]}  a4 {[%clk 0:02:51]} 10. Ne5 {[%clk 0:02:37]}  a3 {[%clk 0:02:48]} 11. Nxa3 {[%clk 0:02:27]}  Bxa3 {[%clk 0:02:46]} 12. Bxa3 {[%clk 0:02:14]}  Rxa3 {[%clk 0:02:45]} 13. Nxc6 {[%clk 0:02:11]}  Nxc6 {[%clk 0:02:40]} 14. cxb5 {[%clk 0:02:11]}  Nb4 {[%clk 0:02:33]} 15. Qc5 {[%clk 0:02:10]}  Qa5 {[%clk 0:02:25]} 16. Rfc1 {[%clk 0:02:09]}  Bd7 {[%clk 0:02:09]} 17. b6 {[%clk 0:02:02]}  Rb8 {[%clk 0:02:07]} 0-1


[Site "https://www.chess.com"]

[Event "Titled Tuesday Blitz April 4 Early 2023"]
[White "Mirzanurov, Bulat"]
[Black "Mikhaylova, Irina"]
[WhiteFideId "4184521"]
[BlackFideId "4109040"]
[WhiteElo "2019"]
[BlackElo "1975"]
[Result "1-0"]
[Round "08"]
[TimeControl "180+2"]
[Date "2023.04.04"]
[WhiteClock "0:00:03"]
[BlackClock "0:00:44"]

1. e4 {[%clk 0:03:00]}  c5 {[%clk 0:03:00]} 2. Nf3 {[%clk 0:02:54]}  Nc6 {[%clk 0:03:00]} 3. d4 {[%clk 0:02:51]}  cxd4 {[%clk 0:03:01]} 4. Nxd4 {[%clk 0:02:51]}  e5 {[%clk 0:03:01]} 5. Nb5 {[%clk 0:02:51]}  d6 {[%clk 0:03:02]} 6. c4 {[%clk 0:02:50]}  Be7 {[%clk 0:03:01]} 7. N1c3 {[%clk 0:02:33]}  a6 {[%clk 0:03:01]} 8. Na3 {[%clk 0:02:31]}  Be6 {[%clk 0:03:02]} 9. Nc2 {[%clk 0:02:29]}  Bg5 {[%clk 0:02:59]} 10. Ne3 {[%clk 0:02:09]}  Nf6 {[%clk 0:02:50]} 11. Nf5 {[%clk 0:01:56]}  Bxc1 {[%clk 0:02:44]} 12. Nxg7+ {[%clk 0:01:55]}  Kf8 {[%clk 0:02:44]} 13. Nxe6+ {[%clk 0:01:56]}  fxe6 {[%clk 0:02:44]} 14. Rxc1 {[%clk 0:01:56]}  Nd4 {[%clk 0:02:42]} 15. Ne2 {[%clk 0:01:44]}  Qa5+ {[%clk 0:02:28]} 16. Qd2 {[%clk 0:01:23]}  Qxd2+ {[%clk 0:02:26]} 17. Kxd2 {[%clk 0:01:24]}  Nxe4+ {[%clk 0:02:26]} 18. Ke3 {[%clk 0:01:25]}  Nxe2 {[%clk 0:02:22]} 19. Bxe2 {[%clk 0:01:21]}  Nf6 {[%clk 0:02:20]} 20. Rhd1 {[%clk 0:01:17]}  Ke7 {[%clk 0:02:20]} 21. Bf3 {[%clk 0:01:10]}  Rab8 {[%clk 0:02:19]} 22. Rc3 {[%clk 0:01:06]}  Rhd8 {[%clk 0:02:13]} 23. Rb3 {[%clk 0:00:56]}  b5 {[%clk 0:02:06]} 24. cxb5 {[%clk 0:00:50]}  Rxb5 {[%clk 0:02:06]} 25. Rxb5 {[%clk 0:00:48]}  axb5 {[%clk 0:02:07]} 26. Rc1 {[%clk 0:00:48]}  Nd5+ {[%clk 0:02:02]} 27. Bxd5 {[%clk 0:00:44]}  exd5 {[%clk 0:02:02]} 28. Rc7+ {[%clk 0:00:33]}  Ke6 {[%clk 0:02:03]} 29. Rxh7 {[%clk 0:00:32]}  d4+ {[%clk 0:02:03]} 30. Kd3 {[%clk 0:00:19]}  Kd5 {[%clk 0:02:00]} 31. f3 {[%clk 0:00:19]}  Rg8 {[%clk 0:01:58]} 32. g4 {[%clk 0:00:18]}  Rf8 {[%clk 0:01:58]} 33. Ke2 {[%clk 0:00:18]}  d3+ {[%clk 0:01:57]} 34. Ke3 {[%clk 0:00:16]}  d2 {[%clk 0:01:57]} 35. Kxd2 {[%clk 0:00:17]}  Rxf3 {[%clk 0:01:56]} 36. Ke2 {[%clk 0:00:17]}  Ke4 {[%clk 0:01:43]} 37. g5 {[%clk 0:00:15]}  Rf8 {[%clk 0:01:30]} 38. g6 {[%clk 0:00:12]}  Rg8 {[%clk 0:01:28]} 39. g7 {[%clk 0:00:07]}  d5 {[%clk 0:01:28]} 40. h4 {[%clk 0:00:06]}  d4 {[%clk 0:01:23]} 41. h5 {[%clk 0:00:06]}  d3+ {[%clk 0:01:23]} 42. Kd1 {[%clk 0:00:05]}  d2 {[%clk 0:00:59]} 43. h6 {[%clk 0:00:04]}  Rc8 {[%clk 0:00:44]} 44. Rh8 {[%clk 0:00:03]} 1-0


[Site "https://www.chess.com"]

[Event "Titled Tuesday Blitz April 4 Early 2023"]
[White "Hrabinska, Myroslava"]
[Black "Vujcic, Milena"]
[WhiteFideId "14109190"]
[BlackFideId "954748"]
[WhiteElo "2039"]
[BlackElo "1882"]
[Result "0-1"]
[Round "08"]
[TimeControl "180+2"]
[Date "2023.04.04"]
[WhiteClock "0:00:04"]
[BlackClock "0:00:11"]

1. e4 {[%clk 0:03:00]}  e5 {[%clk 0:02:59]} 2. Nf3 {[%clk 0:03:00]}  Nc6 {[%clk 0:02:59]} 3. d4 {[%clk 0:02:59]}  exd4 {[%clk 0:02:58]} 4. c3 {[%clk 0:02:59]}  d5 {[%clk 0:02:32]} 5. exd5 {[%clk 0:02:58]}  Qxd5 {[%clk 0:02:31]} 6. cxd4 {[%clk 0:02:58]}  Nf6 {[%clk 0:02:27]} 7. Be2 {[%clk 0:02:57]}  Bb4+ {[%clk 0:02:08]} 8. Nc3 {[%clk 0:02:55]}  Qa5 {[%clk 0:02:07]} 9. O-O {[%clk 0:02:47]}  O-O {[%clk 0:02:02]} 10. Bd2 {[%clk 0:02:30]}  Bg4 {[%clk 0:01:55]} 11. a3 {[%clk 0:02:25]}  Bxc3 {[%clk 0:01:55]} 12. bxc3 {[%clk 0:02:24]}  Qf5 {[%clk 0:01:23]} 13. Rb1 {[%clk 0:02:21]}  Rab8 {[%clk 0:01:06]} 14. Rb5 {[%clk 0:02:19]}  Qd7 {[%clk 0:01:00]} 15. Qb1 {[%clk 0:02:09]}  Rfe8 {[%clk 0:00:49]} 16. Re1 {[%clk 0:02:01]}  Ne4 {[%clk 0:00:43]} 17. Qb2 {[%clk 0:01:03]}  Nxd2 {[%clk 0:00:35]} 18. Qxd2 {[%clk 0:01:01]}  Bxf3 {[%clk 0:00:33]} 19. gxf3 {[%clk 0:00:51]}  Re6 {[%clk 0:00:23]} 20. Rg5 {[%clk 0:00:49]}  Rbe8 {[%clk 0:00:19]} 21. d5 {[%clk 0:00:39]}  Rg6 {[%clk 0:00:19]} 22. Rxg6 {[%clk 0:00:35]}  hxg6 {[%clk 0:00:20]} 23. Rd1 {[%clk 0:00:28]}  Ne5 {[%clk 0:00:20]} 24. Qf4 {[%clk 0:00:25]}  Qh3 {[%clk 0:00:16]} 25. Qg3 {[%clk 0:00:19]}  Qf5 {[%clk 0:00:14]} 26. Kg2 {[%clk 0:00:16]}  g5 {[%clk 0:00:12]} 27. Bb5 {[%clk 0:00:13]}  c6 {[%clk 0:00:11]} 28. dxc6 {[%clk 0:00:13]}  bxc6 {[%clk 0:00:12]} 29. Ba4 {[%clk 0:00:12]}  Ng6 {[%clk 0:00:11]} 30. Rd4 {[%clk 0:00:11]}  Nf4+ {[%clk 0:00:11]} 31. Rxf4 {[%clk 0:00:11]}  gxf4 {[%clk 0:00:12]} 32. Qh4 {[%clk 0:00:11]}  Qg6+ {[%clk 0:00:11]} 33. Kh3 {[%clk 0:00:10]}  Qf5+ {[%clk 0:00:10]} 34. Kg2 {[%clk 0:00:09]}  Re6 {[%clk 0:00:11]} 35. Qd8+ {[%clk 0:00:04]}  Kh7 {[%clk 0:00:11]} 0-1


[Site "https://www.chess.com"]

[Event "Titled Tuesday Blitz April 4 Early 2023"]
[White "Tagliata"]
[Black "Larina, Maria"]
[BlackFideId "24113182"]
[WhiteElo "2282"]
[BlackElo "1848"]
[Result "1/2-1/2"]
[Round "08"]
[TimeControl "180+2"]
[Date "2023.04.04"]
[WhiteClock "0:00:49"]
[BlackClock "0:00:14"]

1. e4 {[%clk 0:02:52]}  c6 {[%clk 0:02:59]} 2. Nc3 {[%clk 0:02:50]}  d5 {[%clk 0:02:59]} 3. Nf3 {[%clk 0:02:51]}  Bg4 {[%clk 0:02:58]} 4. h3 {[%clk 0:02:50]}  Bxf3 {[%clk 0:02:57]} 5. Qxf3 {[%clk 0:02:51]}  e6 {[%clk 0:02:56]} 6. Be2 {[%clk 0:02:49]}  Nd7 {[%clk 0:02:39]} 7. O-O {[%clk 0:02:46]}  Ngf6 {[%clk 0:02:33]} 8. d4 {[%clk 0:02:43]}  dxe4 {[%clk 0:02:32]} 9. Nxe4 {[%clk 0:02:44]}  Nxe4 {[%clk 0:02:32]} 10. Qxe4 {[%clk 0:02:45]}  Nf6 {[%clk 0:02:32]} 11. Qd3 {[%clk 0:02:40]}  Bd6 {[%clk 0:02:27]} 12. Bf3 {[%clk 0:02:39]}  O-O {[%clk 0:02:26]} 13. a4 {[%clk 0:02:38]}  a5 {[%clk 0:02:25]} 14. Bg5 {[%clk 0:02:34]}  Be7 {[%clk 0:02:25]} 15. Rad1 {[%clk 0:02:26]}  h6 {[%clk 0:02:24]} 16. Bh4 {[%clk 0:02:21]}  Re8 {[%clk 0:02:25]} 17. Bg3 {[%clk 0:02:17]}  Bd6 {[%clk 0:02:23]} 18. Bxd6 {[%clk 0:02:16]}  Qxd6 {[%clk 0:02:23]} 19. c3 {[%clk 0:02:16]}  Nd5 {[%clk 0:02:22]} 20. Qe4 {[%clk 0:02:11]}  e5 {[%clk 0:02:10]} 21. Rfe1 {[%clk 0:02:10]}  Nf6 {[%clk 0:01:54]} 22. Qc2 {[%clk 0:01:41]}  exd4 {[%clk 0:01:48]} 23. Rxe8+ {[%clk 0:01:38]}  Rxe8 {[%clk 0:01:49]} 24. cxd4 {[%clk 0:01:37]}  Nd5 {[%clk 0:01:30]} 25. Qc5 {[%clk 0:01:19]}  Qd8 {[%clk 0:00:35]} 26. Bxd5 {[%clk 0:01:15]}  Qxd5 {[%clk 0:00:33]} 27. Qxd5 {[%clk 0:01:14]}  cxd5 {[%clk 0:00:34]} 28. Kf1 {[%clk 0:01:13]}  Rc8 {[%clk 0:00:30]} 29. Rd2 {[%clk 0:01:06]}  Rc1+ {[%clk 0:00:28]} 30. Ke2 {[%clk 0:01:06]}  Ra1 {[%clk 0:00:29]} 31. b3 {[%clk 0:01:04]}  Rb1 {[%clk 0:00:27]} 32. Rd3 {[%clk 0:01:03]}  Rb2+ {[%clk 0:00:27]} 33. Kf3 {[%clk 0:01:03]}  f6 {[%clk 0:00:21]} 34. Rc3 {[%clk 0:01:02]}  Kh7 {[%clk 0:00:20]} 35. Kg3 {[%clk 0:00:59]}  Kg6 {[%clk 0:00:19]} 36. f3 {[%clk 0:00:59]}  h5 {[%clk 0:00:19]} 37. h4 {[%clk 0:01:00]}  Kf5 {[%clk 0:00:18]} 38. Rc5 {[%clk 0:00:57]}  Ke6 {[%clk 0:00:15]} 39. Rxa5 {[%clk 0:00:57]}  Rxb3 {[%clk 0:00:15]} 40. Ra7 {[%clk 0:00:58]}  Rb4 {[%clk 0:00:15]} 41. a5 {[%clk 0:00:56]}  Rxd4 {[%clk 0:00:14]} 42. Rxb7 {[%clk 0:00:56]}  Ra4 {[%clk 0:00:15]} 43. Rb6+ {[%clk 0:00:53]}  Kf5 {[%clk 0:00:15]} 44. a6 {[%clk 0:00:52]}  g5 {[%clk 0:00:14]} 45. hxg5 {[%clk 0:00:51]}  fxg5 {[%clk 0:00:15]} 46. Rd6 {[%clk 0:00:51]}  h4+ {[%clk 0:00:15]} 47. Kh2 {[%clk 0:00:51]}  Ke5 {[%clk 0:00:14]} 48. Rg6 {[%clk 0:00:50]}  Kf5 {[%clk 0:00:14]} 49. Rd6 {[%clk 0:00:49]}  Ke5 {[%clk 0:00:14]} 50. Rg6 {[%clk 0:00:49]}  Kf5 {[%clk 0:00:14]} 1/2-1/2


[Site "https://www.chess.com"]

[Event "Titled Tuesday Blitz April 4 Early 2023"]
[White "Pirvulescu, Ekaterina"]
[Black "Floresvillar Gonzalez, Luis Migu"]
[WhiteFideId "13506374"]
[BlackFideId "5100542"]
[WhiteElo "2006"]
[BlackElo "2040"]
[Result "1-0"]
[Round "08"]
[TimeControl "180+2"]
[Date "2023.04.04"]
[WhiteClock "0:00:29"]
[BlackClock "0:00:03"]

1. e4 {[%clk 0:02:50]}  c6 {[%clk 0:02:44]} 2. d4 {[%clk 0:02:47]}  d5 {[%clk 0:02:44]} 3. exd5 {[%clk 0:02:38]}  cxd5 {[%clk 0:02:41]} 4. Nf3 {[%clk 0:02:38]}  Nc6 {[%clk 0:02:39]} 5. Ne5 {[%clk 0:02:37]}  Nxe5 {[%clk 0:02:31]} 6. dxe5 {[%clk 0:02:37]}  e6 {[%clk 0:02:30]} 7. Bd3 {[%clk 0:02:36]}  Ne7 {[%clk 0:02:29]} 8. O-O {[%clk 0:02:36]}  Nc6 {[%clk 0:02:29]} 9. f4 {[%clk 0:02:28]}  Bc5+ {[%clk 0:02:29]} 10. Kh1 {[%clk 0:02:28]}  g6 {[%clk 0:02:28]} 11. Nc3 {[%clk 0:02:19]}  a6 {[%clk 0:02:26]} 12. Qe2 {[%clk 0:02:10]}  b5 {[%clk 0:02:18]} 13. Nd1 {[%clk 0:02:08]}  Bb7 {[%clk 0:02:14]} 14. Nf2 {[%clk 0:02:07]}  h5 {[%clk 0:02:08]} 15. c3 {[%clk 0:02:03]}  Qh4 {[%clk 0:02:01]} 16. Nh3 {[%clk 0:01:55]}  d4 {[%clk 0:01:52]} 17. a4 {[%clk 0:01:52]}  dxc3 {[%clk 0:01:45]} 18. bxc3 {[%clk 0:01:51]}  bxa4 {[%clk 0:01:10]} 19. Rxa4 {[%clk 0:01:35]}  Qxh3 {[%clk 0:00:59]} 20. gxh3 {[%clk 0:01:20]}  Nd4+ {[%clk 0:00:59]} 21. Qe4 {[%clk 0:01:02]}  Bxe4+ {[%clk 0:00:20]} 22. Bxe4 {[%clk 0:01:03]}  Ra7 {[%clk 0:00:16]} 23. cxd4 {[%clk 0:01:02]}  Bb6 {[%clk 0:00:14]} 24. Be3 {[%clk 0:00:59]}  O-O {[%clk 0:00:12]} 25. Rfa1 {[%clk 0:00:56]}  Rd8 {[%clk 0:00:11]} 26. Kg2 {[%clk 0:00:51]}  a5 {[%clk 0:00:09]} 27. Kf3 {[%clk 0:00:50]}  Kg7 {[%clk 0:00:09]} 28. R1a2 {[%clk 0:00:48]}  f5 {[%clk 0:00:08]} 29. exf6+ {[%clk 0:00:45]}  Kxf6 {[%clk 0:00:08]} 30. Rb2 {[%clk 0:00:46]}  Rd6 {[%clk 0:00:06]} 31. Rg2 {[%clk 0:00:40]}  Rg7 {[%clk 0:00:03]} 32. Rc4 {[%clk 0:00:29]} 1-0


[Site "https://www.chess.com"]

[Event "Titled Tuesday Blitz April 4 Early 2023"]
[White "Sakun, Volodymyr"]
[Black "Simonovic, Miroslav"]
[WhiteFideId "14114062"]
[BlackFideId "919152"]
[WhiteElo "2318"]
[BlackElo "2042"]
[Result "1-0"]
[Round "08"]
[TimeControl "180+2"]
[Date "2023.04.04"]
[WhiteClock "0:00:19"]
[BlackClock "0:00:04"]

1. d4 {[%clk 0:03:00]}  Nf6 {[%clk 0:02:59]} 2. c4 {[%clk 0:02:59]}  c5 {[%clk 0:03:00]} 3. d5 {[%clk 0:02:59]}  b5 {[%clk 0:03:00]} 4. cxb5 {[%clk 0:03:00]}  a6 {[%clk 0:03:01]} 5. b6 {[%clk 0:03:00]}  d6 {[%clk 0:03:01]} 6. Nc3 {[%clk 0:03:00]}  Nbd7 {[%clk 0:03:01]} 7. a4 {[%clk 0:02:59]}  Qxb6 {[%clk 0:03:00]} 8. a5 {[%clk 0:02:59]}  Qb7 {[%clk 0:02:53]} 9. e4 {[%clk 0:02:59]}  g6 {[%clk 0:02:52]} 10. Nf3 {[%clk 0:02:59]}  Bg7 {[%clk 0:02:52]} 11. Be2 {[%clk 0:02:59]}  O-O {[%clk 0:02:52]} 12. O-O {[%clk 0:03:00]}  Rb8 {[%clk 0:02:53]} 13. Nd2 {[%clk 0:03:00]}  e5 {[%clk 0:02:45]} 14. dxe6 {[%clk 0:02:54]}  fxe6 {[%clk 0:02:45]} 15. Nc4 {[%clk 0:02:54]}  d5 {[%clk 0:02:28]} 16. exd5 {[%clk 0:02:53]}  exd5 {[%clk 0:02:29]} 17. Nd6 {[%clk 0:02:38]}  Qc6 {[%clk 0:02:29]} 18. Nxc8 {[%clk 0:02:33]}  Rbxc8 {[%clk 0:02:18]} 19. Bf3 {[%clk 0:02:33]}  Ne5 {[%clk 0:01:44]} 20. Bxd5+ {[%clk 0:02:32]}  Nxd5 {[%clk 0:01:44]} 21. Qxd5+ {[%clk 0:02:32]}  Qxd5 {[%clk 0:01:43]} 22. Nxd5 {[%clk 0:02:33]}  Rb8 {[%clk 0:01:23]} 23. Nb6 {[%clk 0:01:42]}  Rb7 {[%clk 0:01:10]} 24. Be3 {[%clk 0:01:11]}  Nd3 {[%clk 0:01:09]} 25. Rab1 {[%clk 0:00:56]}  Rf5 {[%clk 0:00:45]} 26. b3 {[%clk 0:00:50]}  Bd4 {[%clk 0:00:41]} 27. Bxd4 {[%clk 0:00:47]}  cxd4 {[%clk 0:00:42]} 28. Rbd1 {[%clk 0:00:46]}  Nf4 {[%clk 0:00:26]} 29. g3 {[%clk 0:00:36]}  Ne2+ {[%clk 0:00:19]} 30. Kg2 {[%clk 0:00:36]}  Rxa5 {[%clk 0:00:19]} 31. Nc4 {[%clk 0:00:35]}  Ra2 {[%clk 0:00:16]} 32. Rfe1 {[%clk 0:00:26]}  Rxb3 {[%clk 0:00:15]} 33. Nd2 {[%clk 0:00:26]}  Nc3 {[%clk 0:00:12]} 34. Nxb3 {[%clk 0:00:25]}  Nxd1 {[%clk 0:00:10]} 35. Rxd1 {[%clk 0:00:26]}  a5 {[%clk 0:00:07]} 36. Rxd4 {[%clk 0:00:24]}  a4 {[%clk 0:00:08]} 37. Nc5 {[%clk 0:00:24]}  a3 {[%clk 0:00:08]} 38. Ra4 {[%clk 0:00:25]}  Ra1 {[%clk 0:00:08]} 39. Nb3 {[%clk 0:00:23]}  Ra2 {[%clk 0:00:07]} 40. Ra7 {[%clk 0:00:23]}  g5 {[%clk 0:00:04]} 41. g4 {[%clk 0:00:20]}  Kh8 {[%clk 0:00:03]} 42. Kg3 {[%clk 0:00:20]}  Kg8 {[%clk 0:00:04]} 43. f3 {[%clk 0:00:20]}  Kh8 {[%clk 0:00:04]} 44. h4 {[%clk 0:00:20]}  gxh4+ {[%clk 0:00:04]} 45. Kxh4 {[%clk 0:00:20]}  Rh2+ {[%clk 0:00:04]} 46. Kg5 {[%clk 0:00:20]}  a2 {[%clk 0:00:04]} 47. Kf6 {[%clk 0:00:20]}  Rb2 {[%clk 0:00:04]} 48. Ra8# {[%clk 0:00:19]} 1-0


[Site "https://www.chess.com"]

[Event "Titled Tuesday Blitz April 4 Early 2023"]
[White "rionelG"]
[Black "Vaglio Munoz, Jaime"]
[BlackFideId "6500145"]
[WhiteElo "2192"]
[BlackElo "2199"]
[Result "0-1"]
[Round "08"]
[TimeControl "180+2"]
[Date "2023.04.04"]
[WhiteClock "0:00:13"]
[BlackClock "0:00:34"]

1. e4 {[%clk 0:03:00]}  e6 {[%clk 0:02:59]} 2. d3 {[%clk 0:02:58]}  d5 {[%clk 0:02:59]} 3. Nd2 {[%clk 0:02:58]}  dxe4 {[%clk 0:02:59]} 4. dxe4 {[%clk 0:02:59]}  Nf6 {[%clk 0:02:57]} 5. g3 {[%clk 0:03:00]}  Bc5 {[%clk 0:02:57]} 6. Bg2 {[%clk 0:03:00]}  Qd4 {[%clk 0:02:51]} 7. Qe2 {[%clk 0:02:59]}  Ng4 {[%clk 0:02:50]} 8. Nh3 {[%clk 0:02:54]}  e5 {[%clk 0:02:47]} 9. O-O {[%clk 0:02:52]}  Qd6 {[%clk 0:02:37]} 10. Nb3 {[%clk 0:02:48]}  Bb6 {[%clk 0:02:37]} 11. Kh1 {[%clk 0:02:40]}  O-O {[%clk 0:02:33]} 12. f3 {[%clk 0:02:38]}  Nf6 {[%clk 0:02:29]} 13. Nf2 {[%clk 0:02:39]}  Be6 {[%clk 0:02:26]} 14. Be3 {[%clk 0:02:35]}  Nc6 {[%clk 0:02:26]} 15. Rfd1 {[%clk 0:02:33]}  Qe7 {[%clk 0:02:21]} 16. c3 {[%clk 0:02:31]}  Rfd8 {[%clk 0:02:20]} 17. h3 {[%clk 0:02:22]}  h6 {[%clk 0:02:20]} 18. f4 {[%clk 0:02:20]}  Rxd1+ {[%clk 0:01:43]} 19. Rxd1 {[%clk 0:02:19]}  Rd8 {[%clk 0:01:43]} 20. f5 {[%clk 0:02:16]}  Bxb3 {[%clk 0:01:38]} 21. axb3 {[%clk 0:02:15]}  Bxe3 {[%clk 0:01:33]} 22. Qxe3 {[%clk 0:02:15]}  Rxd1+ {[%clk 0:01:31]} 23. Nxd1 {[%clk 0:02:14]}  Qd6 {[%clk 0:01:32]} 24. Nf2 {[%clk 0:02:14]}  a5 {[%clk 0:01:30]} 25. Bf1 {[%clk 0:02:04]}  b6 {[%clk 0:01:24]} 26. g4 {[%clk 0:02:01]}  Nd7 {[%clk 0:01:20]} 27. Bc4 {[%clk 0:01:57]}  Qc5 {[%clk 0:01:16]} 28. Qxc5 {[%clk 0:01:54]}  Nxc5 {[%clk 0:01:17]} 29. Kg2 {[%clk 0:01:54]}  Kf8 {[%clk 0:01:16]} 30. Kf3 {[%clk 0:01:53]}  Ke7 {[%clk 0:01:16]} 31. Nd3 {[%clk 0:01:50]}  Nd7 {[%clk 0:01:14]} 32. Bb5 {[%clk 0:01:46]}  Ncb8 {[%clk 0:01:13]} 33. h4 {[%clk 0:01:23]}  c6 {[%clk 0:01:11]} 34. Bc4 {[%clk 0:01:04]}  b5 {[%clk 0:01:11]} 35. Bd5 {[%clk 0:01:03]}  cxd5 {[%clk 0:01:10]} 36. exd5 {[%clk 0:01:04]}  Kd6 {[%clk 0:01:10]} 37. Ke4 {[%clk 0:00:56]}  f6 {[%clk 0:01:09]} 38. g5 {[%clk 0:00:53]}  hxg5 {[%clk 0:01:08]} 39. hxg5 {[%clk 0:00:53]}  Na6 {[%clk 0:01:09]} 40. b4 {[%clk 0:00:52]}  axb4 {[%clk 0:01:07]} 41. cxb4 {[%clk 0:00:50]}  Nc7 {[%clk 0:01:07]} 42. gxf6 {[%clk 0:00:48]}  Nxf6+ {[%clk 0:01:03]} 43. Ke3 {[%clk 0:00:44]}  Ncxd5+ {[%clk 0:01:02]} 44. Kd2 {[%clk 0:00:43]}  e4 {[%clk 0:01:02]} 45. Nc5 {[%clk 0:00:34]}  Nxb4 {[%clk 0:01:01]} 46. Ne6 {[%clk 0:00:35]}  g6 {[%clk 0:00:58]} 47. Nd4 {[%clk 0:00:35]}  gxf5 {[%clk 0:00:53]} 48. Nxf5+ {[%clk 0:00:34]}  Ke5 {[%clk 0:00:53]} 49. Ng3 {[%clk 0:00:33]}  Nbd5 {[%clk 0:00:52]} 50. Kc2 {[%clk 0:00:30]}  Kf4 {[%clk 0:00:46]} 51. Ne2+ {[%clk 0:00:30]}  Ke3 {[%clk 0:00:45]} 52. Ng3 {[%clk 0:00:29]}  Kf2 {[%clk 0:00:43]} 53. Nf5 {[%clk 0:00:19]}  e3 {[%clk 0:00:41]} 54. Nd4 {[%clk 0:00:20]}  e2 {[%clk 0:00:40]} 55. Nxe2 {[%clk 0:00:18]}  Kxe2 {[%clk 0:00:40]} 56. Kb3 {[%clk 0:00:15]}  Kd3 {[%clk 0:00:39]} 57. Ka2 {[%clk 0:00:15]}  Kc4 {[%clk 0:00:37]} 58. Ka3 {[%clk 0:00:15]}  b4+ {[%clk 0:00:37]} 59. Ka4 {[%clk 0:00:15]}  Nb6+ {[%clk 0:00:35]} 60. Ka5 {[%clk 0:00:15]}  Nfd5 {[%clk 0:00:35]} 61. Ka6 {[%clk 0:00:13]}  Kb3 {[%clk 0:00:34]} 0-1


[Site "https://www.chess.com"]